Cogmind - Beta 15 @@@ ROGUE MODE // 2025.05.06 @ 16:33:45 Player: WarpDagger Result: Destroyed by G-47 Trooper with Particle Gun Performance ------------- Evolutions (2) 1000 Regions Visited (4) 800 Robots Destroyed (12) 60 Value Destroyed (261) 261 Prototype IDs (1) 20 Alien Tech Used (0) 0 Bonus (200) 200 TOTAL SCORE: 2341 Bonus ------- Pacifist 200 Cogmind --------- Core Integrity 0/550 Matter 203/300 Energy 22/100 System Corruption 0% Temperature Cool (9) Movement Core (50) Location -8/Materials Parts ------- > --- POWER (1) -------- (None) > --- PROPULSION (4) --- (None) > --- UTILITY (4) ------ Advanced Visual Processing Unit Signal Interpreter > --- WEAPON (2) ------- Light Assault Rifle > --- INVENTORY (5) ---- High-capacity Battery (49) Advanced Visual Processing Unit Improved Propulsion Shielding Light Armor Plating Peak State ------------ > --- POWER ------------ Light Ion Engine > --- PROPULSION ------- Titanium Leg Titanium Leg > --- UTILITY ---------- Heat Sink Small Storage Unit Advanced Visual Processing Unit Signal Interpreter > --- WEAPON ----------- Minigun Heavy Mace > --- INVENTORY -------- Light Nuclear Core Flight Unit Flight Unit Flight Unit Advanced Visual Processing Unit Improved Propulsion Shielding Improved Propulsion Shielding Improved Datajack [Rating: 20] Favorites ----------- Power Light Ion Engine Engine Light Ion Engine Propulsion Aluminum Leg Leg Aluminum Leg Flight Unit Flight Unit Utility Small Storage Unit Device Sensor Array Storage Small Storage Unit Processor Signal Interpreter Weapon Assault Rifle Energy Gun EM Pulse Gun Ballistic Gun Assault Rifle Ballistic Cannon Improved Light Cannon Impact Weapon Heavy Mace Special Melee Weapon Improved Datajack Build | -11 -10 -10 -9 -8 ------- Run | Yrd Mat Min Mat Mat Slots Evolved 4 | . . . 2 2 Power . | . . . . . Propulsion 2 | . . . . 2 Utility 2 | . . . 2 . Weapon . | . . . . . Parts Attached 25 | 6 1 . 6 12 Power 3 | 1 . . 1 1 Engine 2 | 1 . . 1 . Core 1 | . . . . 1 Reactor . | . . . . . Propulsion 8 | 2 . . 2 4 Treads . | . . . . . Leg 4 | 2 . . 2 . Wheel . | . . . . . Hover . | . . . . . Flight 4 | . . . . 4 Utility 5 | 1 1 . 1 2 Device 2 | . 1 . . 1 Storage 1 | 1 . . . . Processor 2 | . . . 1 1 Hackware . | . . . . . Protection . | . . . . . Artifact . | . . . . . Weapon 9 | 2 . . 2 5 Energy Gun 2 | 1 . . . 1 Energy Cannon . | . . . . . Ballistic Gun 3 | 1 . . . 2 Ballistic Cannon 2 | . . . 2 . Launcher . | . . . . . Special Weapon . | . . . . . Impact Weapon 1 | . . . . 1 Slashing Weapon . | . . . . . Piercing Weapon . | . . . . . Special Melee Weapon 1 | . . . . 1 Unidentified Prototypes 1 | . . . . 1 Parts Lost 17 | . . . 5 12 Power 3 | . . . 1 2 Propulsion 5 | . . . . 5 Utility 3 | . . . 1 2 Weapon 6 | . . . 3 3 Highest Loss Streak 8 | . . . 3 8 To Critical Strikes . | . . . . . Average Backups 2 | . . 1 2 6 Power . | . . . . . Propulsion . | . . . 1 2 Utility . | . . 1 . 3 Weapon . | . . . . . Tool/Special . | . . . . . Unused Backups 7 | . . . . 7 Power . | . . . . . Propulsion . | . . . . . Utility 6 | . . . . 6 Weapon . | . . . . . Tool/Special 1 | . . . . 1 Average Slot Usage (%) 80 | . 97 100 79 65 Engine 9 | . 14 14 9 6 Leg 20 | . 28 28 22 11 Device 7 | . 11 14 5 6 Storage 11 | . 14 14 11 8 Processor 9 | . . . 11 17 Energy Gun 7 | . 14 14 6 1 Ballistic Gun 8 | . 14 14 9 3 Ballistic Cannon 2 | . . . 4 3 Impact Weapon 1 | . . . . 5 Peak Build Rating 20 | 6 7 7 12 20 Average Rating 9 | 3 6 7 8 15 On Entrance 6 | . 6 7 7 12 Naked Turns . | . . . . . Heaviest Build 16 | 12 13 13 13 16 Greatest Support 34 | 20 20 20 34 34 Greatest Overweight (x) 1 | 1 1 . . 1 Average Overweight (x) . | . . . . . Largest Inventory Capacity 8 | 8 8 8 8 8 Average Capacity 7 | 6 8 8 8 7 Most Carried 8 | 4 1 1 8 8 Average Carried 2 | . . 1 2 7 Final Capacity 8 | 8 8 8 8 5 Final Carried 8 | . 1 1 8 4 Class Distribution -------------------- 100% | Mutant Dominant Class ---------------- Mutant | -10/Materials Mutant | -10/Mines Mutant | -9/Materials Mutant | -8/Materials Resources | -11 -10 -10 -9 -8 ----------- Run | Yrd Mat Min Mat Mat Matter Collected 421 | 260 10 . 96 55 Remotely . | . . . . . Salvage Created 297 | . . . 167 130 Parts 13 | . . . 10 3 Haulers Intercepted . | . . . . . Recyclers Shooed . | . . . . . Parts Field Recycled . | . . . . . Retrieved Matter . | . . . . . Parts Self-Destructed . | . . . . . Prevented . | . . . . . Kills | -11 -10 -10 -9 -8 ------- Run | Yrd Mat Min Mat Mat Combat Hostiles Destroyed 11 | . . . 6 5 Guns 6 | . . . 3 3 Cannons 3 | . . . 3 . Classes Destroyed 3 | . . . 3 . Recycler 1 | . . . 1 . Swarmer 7 | . . . 4 3 Grunt 4 | . . . 2 2 Best Kill Streak 3 | . . . 3 3 Combat Bots Only 3 | . . . 3 3 Max Kills in Single Turn 1 | . . . 1 1 Gunslinging . | . . . . . Exploded . | . . . . . Melee . | . . . . . Uniques/NPCs Destroyed . | . . . . . Combat | -11 -10 -10 -9 -8 -------- Run | Yrd Mat Min Mat Mat Hostile Shots Fired 260 | . 1 . 75 184 Missed 74 | . . . 19 55 Hits 186 | . 1 . 56 129 Projectile 186 | . 1 . 56 129 Critical Strikes 6 | . . . 2 4 Part Disruptions 1 | . 1 . . . Damage Taken 2059 | . 79 . 639 1341 Core 606 | . 4 . 49 553 Absorbed by Shields . | . . . . . Core Remaining (%) 95 | 100 . 98 87 . Volleys Fired 52 | . . . 24 28 Largest 2 | . . . 2 1 Hottest 63 | . . . 63 61 Shots Fired 70 | . . . 42 28 Gun 51 | . . . 23 28 Cannon 19 | . . . 19 . Launcher . | . . . . . Special . | . . . . . Kinetic 51 | . . . 36 15 Thermal 13 | . . . . 13 Explosive . | . . . . . Electromagnetic 6 | . . . 6 . Robot Hit Streak 9 | . . . 9 5 Robot Miss Streak 4 | . . . 4 4 Penetration Max . | . . . . . Secondary Targets . | . . . . . Shots Hit Robots 46 | . . . 23 23 Core Hits 14 | . . . 8 6 Critical Kills . | . . . . . Critical Parts Destroyed 3 | . . . . 3 Critical Strikes 4 | . . . 1 3 Destroy 1 | . . . . 1 Blast 1 | . . . 1 . Smash 2 | . . . . 2 Melee Attacks 6 | . . . . 6 Impact 3 | . . . . 3 Slashing . | . . . . . Piercing . | . . . . . Sneak Attacks . | . . . . . Combat Hostiles . | . . . . . Follow-up Attacks . | . . . . . Damage Inflicted 829 | . . . 419 410 Guns 442 | . . . 127 315 Cannons 292 | . . . 292 . Explosions . | . . . . . Melee 75 | . . . . 75 Ramming 20 | . . . . 20 Kinetic 594 | . . . 419 175 Thermal 140 | . . . . 140 Explosive . | . . . . . Electromagnetic . | . . . . . Impact 75 | . . . . 75 Slashing . | . . . . . Piercing . | . . . . . Highest Corruption . | . . . . . Average Corruption . | . . . . . Corruption Purged . | . . . . . Corruption Blocked . | . . . . . Overload Shots . | . . . . . Overflow Damage 42 | . . . . 42 Projectiles . | . . . . . Explosions . | . . . . . Melee 42 | . . . . 42 Knockbacks 3 | . . . 3 . Impact . | . . . . . Kinetic 3 | . . . 3 . Secondary . | . . . . . Self-Inflicted Damage 9 | . . . . 9 Shots . | . . . . . Rammed 6 | . . . . 6 Targets Rammed 6 | . . . . 6 Kicked . | . . . . . Crushed . | . . . . . Highest Temperature 63 | . . . 26 63 Average Temperature 18 | . . . 9 25 Received Heat Transfer 672 | . 9 . 312 351 Siege Activations . | . . . . . Martial Activations . | . . . . . Shielding Activations . | . . . . . Robots Disrupted . | . . . . . Combat Hostiles . | . . . . . Robots Corrupted 2 | . . . . 2 Combat Hostiles 2 | . . . . 2 Parts Fried 1 | . . . . 1 Impact Corruptions 3 | . . . . 3 Robots Melted . | . . . . . Combat Hostiles . | . . . . . Parts Melted 1 | . . . . 1 Heat Transferred 259 | . . . . 259 Parts Sabotaged . | . . . . . Parts Stolen . | . . . . . Parts Stripped . | . . . . . Power Chain Reactions . | . . . . . Alert | -11 -10 -10 -9 -8 ------- Run | Yrd Mat Min Mat Mat Maximum Alert Level . | . . . . . Low Security (%) 100 | 100 100 100 100 100 Level 1 . | . . . . . Level 2 . | . . . . . Level 3 . | . . . . . Level 4 . | . . . . . Level 5 . | . . . . . High Security . | . . . . . Max Security . | . . . . . Peak Influence 106 | . . . 106 55 Initial 34 | . . . . 34 Average 20 | . . . 41 11 Influence Increases 391 | . . . 266 125 Destroy 0b10 Robot/C 220 | . . . 120 100 Destroy 0b10 Robot/NC 5 | . . . 5 . Destroy Leader 30 | . . . 20 10 Disable Machine 15 | . . . . 15 Destroy Structure 1 | . . . 1 . Lose Combat Pursuer 120 | . . . 120 . Influence Decreases 356 | . . . 184 172 Entered New Map 48 | . . . . 48 Time Decay 198 | . . . 134 64 Lost Part 110 | . . . 50 60 Squads Dispatched 1 | . . . 1 . Investigation . | . . . . . Extermination . | . . . . . Reinforcement 1 | . . . 1 . Assault . | . . . . . Garrison . | . . . . . Intercept . | . . . . . Searches Triggered . | . . . . . Construction Impeded . | . . . . . Haulers Reinforced . | . . . . . Active Scanning Responses . | . . . . . Cargo Convoy Interrupts . | . . . . . Stealth | -11 -10 -10 -9 -8 --------- Run | Yrd Mat Min Mat Mat Distress Signals 1 | . . . . 1 Communications Jammed . | . . . . . Distress Signals . | . . . . . Times Spotted 34 | . 1 . 19 14 Peak Tracking Total 9 | . 1 . 6 9 Tactical Retreats 4 | . . . 4 . Traps | -11 -10 -10 -9 -8 ------- Run | Yrd Mat Min Mat Mat Traps Triggered 1 | . 1 . . . Indirectly . | . . . . . Trap Hack Attempts . | . . . . . Triggered . | . . . . . Disarmed . | . . . . . Reprogrammed . | . . . . . Reused . | . . . . . Traps Extracted . | . . . . . Installed . | . . . . . Triggered . | . . . . . Machines | -11 -10 -10 -9 -8 ---------- Run | Yrd Mat Min Mat Mat Machines Disabled 1 | . . . . 1 Max in Single Turn 1 | . . . . 1 Machines Repaired . | . . . . . Machines Dismantled . | . . . . . Machines Sabotaged . | . . . . . Overloaded Fab Kills . | . . . . . Hacking | -11 -10 -10 -9 -8 --------- Run | Yrd Mat Min Mat Mat Machines Accessed . | . . . . . Terminals . | . . . . . Fabricators . | . . . . . Repair Stations . | . . . . . Recycling Units . | . . . . . Scanalyzers . | . . . . . Garrison Access . | . . . . . Total Hacks . | . . . . . Successful . | . . . . . Failed . | . . . . . Catastrophic . | . . . . . Database Lockouts . | . . . . . Manual . | . . . . . Terminals . | . . . . . Fabricators . | . . . . . Repair Stations . | . . . . . Recycling Units . | . . . . . Scanalyzers . | . . . . . Garrison Access . | . . . . . Terminal Hacks . | . . . . . Fabricator Hacks . | . . . . . Repair Station Hacks . | . . . . . Recycling Unit Hacks . | . . . . . Scanalyzer . | . . . . . Garrison Access Hacks . | . . . . . Unauthorized Hacks . | . . . . . Terminals . | . . . . . Fabricators . | . . . . . Repair Stations . | . . . . . Recycling Units . | . . . . . Scanalyzers . | . . . . . Garrison Access . | . . . . . Data Cores Recovered . | . . . . . Used . | . . . . . Hacking Detections . | . . . . . Full Trace Events . | . . . . . Feedback Events . | . . . . . Feedback Blocked . | . . . . . Robot Schematics Acquired . | . . . . . Robots Built . | . . . . . Authchips . | . . . . . Time . | . . . . . Total Robot Build Rating . | . . . . . Part Schematics Acquired . | . . . . . Parts Built . | . . . . . Authchips . | . . . . . Time . | . . . . . Total Part Build Rating . | . . . . . Parts Repaired . | . . . . . Time . | . . . . . Parts Recycled . | . . . . . Recycled Matter . | . . . . . Retrieved Matter . | . . . . . Retrieved Components . | . . . . . Parts Scanalyzed . | . . . . . Part Schematics Acquired . | . . . . . Parts Damaged . | . . . . . Bothacking | -11 -10 -10 -9 -8 ------------ Run | Yrd Mat Min Mat Mat Used RIF Installer . | . . . . . Robots Hacked 1 | . . . . 1 Non-combat . | . . . . . Combat 1 | . . . . 1 Robot Hacks Applied 1 | . . . . 1 parse_system 1 | . . . . 1 Relay Couplers Released . | . . . . . Fabnet Peak Effective % . | . . . . . Robots Rewired . | . . . . . Allies Hacked . | . . . . . Hacks Repelled . | . . . . . Allies | -11 -10 -10 -9 -8 -------- Run | Yrd Mat Min Mat Mat Total Allies . | . . . . . Largest Group . | . . . . . Highest-Rated Group . | . . . . . Highest-Rated Ally . | . . . . . Total Orders . | . . . . . Ally Attacks . | . . . . . Total Damage . | . . . . . Kills . | . . . . . Allies Corrupted . | . . . . . Allies Melted . | . . . . . Intel | -11 -10 -10 -9 -8 ------- Run | Yrd Mat Min Mat Mat Active Infowar (turns) 724 | . 201 35 242 246 Optics 246 | . . . . 246 Sensors 478 | . 201 35 242 . Robot Analysis Total . | . . . . . Derelict Logs Recovered . | . . . . . Drone Launches . | . . . . . Drone Recoveries . | . . . . . Exploration | -11 -10 -10 -9 -8 ------------- Run | Yrd Mat Min Mat Mat Turns Passed 1044 | 63 238 35 447 261 Spaces Moved 574 | 41 138 30 231 134 Core 29 | 4 . . . 25 Treads . | . . . . . Legs 529 | 37 138 30 231 93 Wheels . | . . . . . Hover . | . . . . . Flight 16 | . . . . 16 Fastest Speed 44 | 50 120 120 120 44 Average Speed 126 | 123 144 120 121 117 Slowest Speed 190 | 190 190 120 130 130 Overloaded Moves . | . . . . . Propulsion Burnouts . | . . . . . Robots Hopped . | . . . . . Potential Cave-ins . | . . . . . Cave-ins Triggered . | . . . . . Exploration Rate (%) 17 | 4 27 19 18 17 Regions Visited 4 Branch Regions 1 Pre-discovered Areas . | . . . . . Known Exits Taken 1 | . . . 1 . Unknown Exits Taken 3 | 1 1 1 . . Scrap Searched . | . . . . . Spaces Dug . | . . . . . Terrain Destroyed . | . . . . . Melee . | . . . . . Projectile . | . . . . . AOE . | . . . . . Terrain Rammed . | . . . . . Walls Destroyed . | . . . . . Machines Disabled . | . . . . . Actions | -11 -10 -10 -9 -8 --------- Run | Yrd Mat Min Mat Mat Total 823 | 53 176 29 355 210 Wait 125 | 1 36 . 78 10 Move 570 | 40 137 29 230 134 Hop . | . . . . . Pick Up 32 | 6 2 . 14 10 Fast Attach 1 | . . . . 1 Attach 22 | 6 1 . 4 11 Detach . | . . . . . Swap 2 | . . . 2 . Drop 7 | . . . 3 4 Fire 52 | . . . 24 28 Melee 6 | . . . . 6 Ram 6 | . . . . 6 Kick . | . . . . . Crush . | . . . . . Escape Stasis . | . . . . . Rewire . | . . . . . Trap . | . . . . . Miscellaneous . | . . . . . Route ------- -11/Scrapyard -10/Materials (discovered 2 exits: [*Min x2]) -10/Mines -9/Materials -8/Materials History --------- Turn | Location | Event 11 | -11/Scrapyard | Discovered new exit (range 16) 64 | -11/Scrapyard | Entered Materials 64 | -10/Materials | Discovered new exit (range 15) 65 | -10/Materials | Met a group of wandering Federalists 279 | -10/Materials | Discovered new exit (range 12) 302 | -10/Materials | Entered Mines 312 | -10/Mines | Build established: Mutant 323 | -10/Mines | Discovered new exit (range 15) 337 | -10/Mines | Entered Materials 337 | -9/Materials | Evolved 2 slots: Utility x2 740 | -9/Materials | Lost 3 parts (1p2w) 776 | -9/Materials | Discovered new exit (range 7) 783 | -9/Materials | Identified exit to Materials 784 | -9/Materials | Entered another Materials area 784 | -8/Materials | Evolved 2 slots: Propulsion x2 995 | -8/Materials | Core integrity fell below 50% 1014 | -8/Materials | Lost 8 parts (2p3n1u2w) 1029 | -8/Materials | Core integrity fell below 20% 1045 | -8/Materials | Destroyed by G-47 Trooper with Particle Gun Last Messages --------------- Sml. Storage Unit destroyed. K-01 Serf collects debris. Destroyed Flight Unit. K-01 Serf collects debris. S-10 Pest destroyed. K-01 Serf collects debris. Adv. Beam Rifle destroyed. Slammed into G-47 Trooper. Destabilizing: System interference. Signal Interpreter temporarily disabled. K-01 Serf collects debris. Slammed into G-47 Trooper. Destabilizing: Core damaged (-11). Slammed into G-47 Trooper. K-01 Serf collects debris. Acquired Lgt. Assault Rifle. Critical hit (Burn: +37). Flight Unit destroyed. K-01 Serf collects debris. R-06 Scavenger collects Flight Unit. Map ----- +----------------------------------------------------+ | ????????????????# + #????????????????? | | ????????????????# # """ #????????????????? | | ????????????????# # """ !#????????????????? | | ????????????????# #? """ #????????????????? | | ?????????######## #? #????????????????? | | ?????????# [ # ##########????????????????? | | ?????????#* # # #??????????????????? | | ?????????# """ + + #??????????????????? | | ?????????# """ # #" """ #??????????????????? | | ?????????#] """ # #T """ #??????????????????? | | ?????????# # #? """ #??????????????????? | | ?????????######## #? #??????????????????? | | ????????????????# ##############????????????? | | ????????????????# # #????????????? | | ????????????????# /% """ #????????????? | | ????????????????# #=!=! """ #????????????? | | ????????????????# # =%= "" #????????????? | | ????????????????# # =! #????????????? | | ?????????????#### ##############????????????? | | ????????????##! #?????????????????????????? | | ????????????#! #?????????????????????????? | | ????????????#! ########??????????????????? | | ????????????#! #!! #??????????????????? | | ????????????#! / #* "" #??????????????????? | | ????????????##! #*%k"" #??????????????????? | | ?????????????####%= #%@" " #??????????????????? | | ????????????????#%* #g% #??????????????????? | | ????????????????# [ # kr #??????????????????? | | ????????????????# ###g######+##?????????????? | | ????????????????# % ????? | | ????????????????# ????? | | ????????????????# """"???????? | | ????????????????# ########### ""T????????? | | ????????????????# #????????????? ???????? | | ????????????????# #???????????????? !??????? | | ????????????????# #?????????????????????????? | | ????????????????# #?????????????????????????? | | ???????????????? #?????????????????????????? | | ???????????????## #?????????????????????????? | | ????????????????#####?????????????????????????? | | ??????????????????????????????????????????????? | | ??????????????????????????????????????????????? | | ??????????????????????????????????????????????? | | ??????????????????????????????????????????????? | | ??????????????????????????????????????????????? | | ??????????????????????????????????????????????? | | ??????????????????????????????????????????????? | | ??????????????????????????????????????????????? | | ??????????????????????????????????????????????? | | ??????????????????????????????????????????????? | +----------------------------------------------------+ Best States ------------- Heat Dissipation 41 Energy Generation 10 Energy Capacity 125 Matter Stores 300 Matter Capacity 300 Sight Range 20 Robot Scan Range 14 Terrain Scan Density 10 Evasion (%) 62 Item Schematics ----------------- None Robot Schematics ------------------ None Fabricated ------------ Nothing Repaired ---------- Nothing Alien Tech Used ----------------- None Achievements -------------- None Challenges ------------ None Game ------ Seed ArcsightInterceptBank Manual? 0 Play Time 00:13:13 Cumulative 8.1 hours Start 2025.05.06 @ 16:23:58 End 2025.05.06 @ 16:33:45 Sessions 1 Manual Loads 0 Difficulty Rogue Special Mode None Game No. 24 Rogue 24 Adventurer 0 Explorer 0 Win Type - Total 0 Types 0/0/0/0/0/0/0/0/0/0 Lore% 3 Gallery% 21 Achievement% 17 Wizard Run 0 Options --------- Layout 1 ASCII 0 Keyboard 0 Movement Numpad Keybinds 0 Fullscreen 1 Font 24/Smallcaps Map View 50x35 Zoom Use 0% Tactical HUD 0 Map Filters NONE Filters NONE Steam 1 RUN: a41ef71a-8f2e-448d-b762-92476991392c